[Event "NK Rapid Vrouwen 2019"]
[Site "Amstelveen, Netherlands"]
[Date "2019.12.01"]
[Round "2.4"]
[White "Ratsma, Rosa"]
[Black "Haast, Anne"]
[Result "1-0"]
[TimeControl "15m+10s"]
[WhiteTitle "WIM"]
[BlackTitle "WGM"]
[WhiteFideId "1033662"]
[BlackFideId "1017292"]
[WhiteElo "2274"]
[BlackElo "2288"]

1. e4 {[%clk 00:15:17]} {[%emt 00:00:03]} c5 {[%clk 00:15:19]} 2. Nf3 {[%clk
00:15:25]} {[%emt 00:00:02]} e6 {[%clk 00:15:28]} {[%emt 00:00:02]} 3. d4
{[%clk 00:15:33]} {[%emt 00:00:02]} cxd4 {[%clk 00:15:37]} {[%emt 00:00:02]} 4.
Nxd4 {[%clk 00:15:41]} {[%emt 00:00:01]} Nc6 {[%clk 00:15:45]} {[%emt
00:00:02]} 5. Nc3 {[%clk 00:15:48]} {[%emt 00:00:02]} Qc7 {[%clk 00:15:54]}
{[%emt 00:00:02]} 6. Be3 {[%clk 00:15:37]} {[%emt 00:00:21]} a6 {[%clk
00:16:03]} {[%emt 00:00:01]} 7. Qd2 {[%clk 00:15:45]} Nf6 {[%clk 00:16:08]}
{[%emt 00:00:06]} 8. f4 {[%clk 00:15:50]} {[%emt 00:00:05]} Bb4 {[%clk
00:15:21]} {[%emt 00:00:57]} 9. Bd3 {[%clk 00:15:56]} {[%emt 00:00:03]} d5
{[%clk 00:13:16]} {[%emt 00:02:16]} 10. e5 {[%clk 00:15:43]} {[%emt 00:00:22]}
Ng4 {[%clk 00:13:06]} {[%emt 00:00:21]} 11. Bg1 {[%clk 00:15:16]} {[%emt
00:00:38]} h5 {[%clk 00:11:44]} {[%emt 00:01:31]} 12. a3 {[%clk 00:15:02]}
{[%emt 00:00:24]} Be7 {[%clk 00:10:52]} {[%emt 00:01:02]} 13. O-O-O {[%clk
00:12:34]} {[%emt 00:02:37]} Bd7 {[%clk 00:10:52]} {[%emt 00:00:10]} 14. Kb1
{[%clk 00:11:34]} {[%emt 00:01:10]} b5 {[%clk 00:10:44]} {[%emt 00:00:19]} 15.
Nxc6 {[%clk 00:11:11]} {[%emt 00:00:33]} Bxc6 {[%clk 00:10:33]} {[%emt
00:00:21]} 16. Ne2 {[%clk 00:11:05]} {[%emt 00:00:16]} b4 {[%clk 00:10:07]}
{[%emt 00:00:37]} 17. axb4 {[%clk 00:10:35]} {[%emt 00:00:40]} O-O {[%clk
00:09:39]} {[%emt 00:00:37]} 18. Nd4 {[%clk 00:10:05]} {[%emt 00:00:39]} Ba4
{[%clk 00:08:57]} {[%emt 00:00:52]} 19. Rc1 {[%clk 00:08:17]} {[%emt 00:01:58]}
Rfb8 {[%clk 00:08:54]} {[%emt 00:00:14]} 20. c3 {[%clk 00:08:09]} {[%emt
00:00:17]} Qb7 {[%clk 00:07:41]} {[%emt 00:01:23]} 21. h3 {[%clk 00:05:14]}
{[%emt 00:03:05]} Nh6 {[%clk 00:07:45]} {[%emt 00:00:06]} 22. Qe2 {[%clk
00:05:07]} {[%emt 00:00:17]} h4 {[%clk 00:07:33]} {[%emt 00:00:23]} 23. Be3
{[%clk 00:04:26]} {[%emt 00:00:51]} Bd7 {[%clk 00:07:33]} {[%emt 00:00:10]} 24.
Rhg1 {[%clk 00:04:01]} {[%emt 00:00:35]} a5 {[%clk 00:06:52]} {[%emt 00:00:52]}
25. b5 {[%clk 00:04:00]} {[%emt 00:00:10]} Nf5 {[%clk 00:06:58]} {[%emt
00:00:04]} 26. Nxf5 {[%clk 00:03:06]} {[%emt 00:01:03]} exf5 {[%clk 00:07:06]}
{[%emt 00:00:03]} 27. b6 {[%clk 00:03:04]} {[%emt 00:00:12]} Bd8 {[%clk
00:07:09]} {[%emt 00:00:07]} 28. g4 {[%clk 00:03:00]} {[%emt 00:00:14]} fxg4
{[%clk 00:06:35]} {[%emt 00:00:44]} 29. Rxg4 {[%clk 00:02:36]} {[%emt
00:00:34]} Bxb6 {[%clk 00:04:01]} {[%emt 00:02:44]} 30. Rg2 {[%clk 00:01:44]}
{[%emt 00:01:01]} Bxe3 {[%clk 00:03:17]} {[%emt 00:00:54]} 31. Qxe3 {[%clk
00:01:53]} {[%emt 00:00:01]} d4 {[%clk 00:03:26]} {[%emt 00:00:01]} 32. Qe2
{[%clk 00:01:21]} {[%emt 00:00:42]} dxc3 {[%clk 00:02:49]} {[%emt 00:00:47]} 33.
Rxc3 {[%clk 00:01:28]} {[%emt 00:00:03]} Bc6 {[%clk 00:02:13]} {[%emt
00:00:46]} 34. Rg1 {[%clk 00:00:50]} {[%emt 00:00:49]} Bf3 {[%clk 00:02:13]}
{[%emt 00:00:10]} 35. Qc2 {[%clk 00:00:41]} {[%emt 00:00:18]} Ra7 {[%clk
00:02:11]} {[%emt 00:00:13]} 36. f5 {[%clk 00:00:44]} {[%emt 00:00:08]} Kf8
{[%clk 00:01:42]} {[%emt 00:00:38]} 37. f6 {[%clk 00:00:44]} {[%emt 00:00:09]}
g6 {[%clk 00:01:51]} {[%emt 00:00:02]} 38. Qd2 {[%clk 00:00:44]} {[%emt
00:00:10]} Be4 {[%clk 00:01:48]} {[%emt 00:00:13]} 39. Rgc1 {[%clk 00:00:42]}
{[%emt 00:00:12]} Bxd3+ {[%clk 00:01:49]} {[%emt 00:00:09]} 40. Rxd3 {[%clk
00:00:46]} {[%emt 00:00:06]} Kg8 {[%clk 00:01:38]} {[%emt 00:00:22]} 41. Rc4
{[%clk 00:00:32]} {[%emt 00:00:24]} Qh1+ {[%clk 00:01:41]} {[%emt 00:00:07]} 42.
Ka2 {[%clk 00:00:41]} Rb4 {[%clk 00:01:25]} {[%emt 00:00:26]} 43. Rd8+ {[%clk
00:00:44]} {[%emt 00:00:07]} Kh7 {[%clk 00:01:32]} {[%emt 00:00:03]} 44. Rh8+
{[%clk 00:00:51]} {[%emt 00:00:02]} 1-0

[Event "NK Rapid Vrouwen 2019"]
[Site "Amstelveen, Netherlands"]
[Date "2019.12.01"]
[Round "3.1"]
[White "Peng, Zhaoqin"]
[Black "Ratsma, Rosa"]
[Result "1-0"]
[TimeControl "15m+10s"]
[WhiteTitle "GM"]
[BlackTitle "WIM"]
[WhiteFideId "1004786"]
[BlackFideId "1033662"]
[WhiteElo "2364"]
[BlackElo "2274"]

1. d4 {[%clk 00:14:38]} {[%emt 00:00:41]} Nf6 {[%clk 00:15:18]} {[%emt
00:00:02]} 2. Nf3 {[%clk 00:14:47]} d5 {[%clk 00:15:27]} {[%emt 00:00:02]} 3.
Bf4 {[%clk 00:14:46]} {[%emt 00:00:12]} c5 {[%clk 00:15:33]} {[%emt 00:00:04]}
4. e3 {[%clk 00:14:53]} {[%emt 00:00:02]} Nc6 {[%clk 00:15:39]} {[%emt
00:00:05]} 5. c3 {[%clk 00:15:01]} {[%emt 00:00:02]} Qb6 {[%clk 00:15:39]}
{[%emt 00:00:10]} 6. Qb3 {[%clk 00:14:44]} {[%emt 00:00:27]} c4 {[%clk
00:15:45]} {[%emt 00:00:04]} 7. Qc2 {[%clk 00:14:53]} {[%emt 00:00:01]} Bf5
{[%clk 00:15:48]} {[%emt 00:00:08]} 8. Qc1 {[%clk 00:15:02]} e6 {[%clk
00:15:52]} {[%emt 00:00:05]} 9. Be2 {[%clk 00:15:03]} {[%emt 00:00:08]} Be7
{[%clk 00:15:47]} {[%emt 00:00:16]} 10. h3 {[%clk 00:15:12]} {[%emt 00:00:02]}
O-O {[%clk 00:15:32]} {[%emt 00:00:25]} 11. Nbd2 {[%clk 00:15:04]} {[%emt
00:00:18]} h6 {[%clk 00:15:23]} {[%emt 00:00:19]} 12. O-O {[%clk 00:15:10]}
{[%emt 00:00:04]} Rfc8 {[%clk 00:15:27]} {[%emt 00:00:07]} 13. Re1 {[%clk
00:14:39]} {[%emt 00:00:40]} Qd8 {[%clk 00:14:53]} {[%emt 00:00:44]} 14. Bd1
{[%clk 00:14:44]} {[%emt 00:00:05]} b5 {[%clk 00:14:48]} {[%emt 00:00:15]} 15.
Bc2 {[%clk 00:14:34]} {[%emt 00:00:20]} Ne4 {[%clk 00:12:09]} {[%emt 00:02:49]}
16. Nxe4 {[%clk 00:13:56]} {[%emt 00:00:48]} Bxe4 {[%clk 00:12:04]} {[%emt
00:00:14]} 17. Bxe4 {[%clk 00:12:50]} {[%emt 00:01:16]} dxe4 {[%clk 00:12:13]}
{[%emt 00:00:02]} 18. Nd2 {[%clk 00:12:49]} {[%emt 00:00:10]} f5 {[%clk
00:11:39]} {[%emt 00:00:43]} 19. f3 {[%clk 00:11:44]} {[%emt 00:01:14]} exf3
{[%clk 00:10:32]} {[%emt 00:01:19]} 20. Nxf3 {[%clk 00:11:51]} {[%emt
00:00:02]} g5 {[%clk 00:09:56]} {[%emt 00:00:46]} 21. Bh2 {[%clk 00:11:36]}
{[%emt 00:00:25]} Bd6 {[%clk 00:09:35]} {[%emt 00:00:31]} 22. Bxd6 {[%clk
00:09:40]} {[%emt 00:02:06]} Qxd6 {[%clk 00:09:44]} {[%emt 00:00:02]} 23. e4
{[%clk 00:09:48]} {[%emt 00:00:01]} f4 {[%clk 00:09:27]} {[%emt 00:00:27]} 24.
Qc2 {[%clk 00:09:00]} {[%emt 00:00:57]} Ne7 {[%clk 00:07:57]} {[%emt 00:01:40]}
25. a4 {[%clk 00:08:04]} {[%emt 00:01:07]} a6 {[%clk 00:07:47]} {[%emt
00:00:20]} 26. Ne5 {[%clk 00:06:43]} {[%emt 00:01:32]} b4 {[%clk 00:07:11]}
{[%emt 00:00:46]} 27. Qe2 {[%clk 00:06:41]} {[%emt 00:00:11]} Rab8 {[%clk
00:05:49]} {[%emt 00:01:33]} 28. Qh5 {[%clk 00:06:43]} {[%emt 00:00:07]} bxc3
{[%clk 00:05:05]} {[%emt 00:00:53]} 29. bxc3 {[%clk 00:05:13]} {[%emt
00:01:41]} Rb3 {[%clk 00:04:34]} {[%emt 00:00:41]} 30. Qxh6 {[%clk 00:04:24]}
{[%emt 00:00:58]} Rxc3 {[%clk 00:04:31]} {[%emt 00:00:13]} 31. Qxg5+ {[%clk
00:04:22]} {[%emt 00:00:12]} Kh7 {[%clk 00:04:15]} {[%emt 00:00:26]} 32. Qh5+
{[%clk 00:03:28]} {[%emt 00:01:05]} Kg7 {[%clk 00:04:03]} {[%emt 00:00:22]} 33.
Qf7+ {[%clk 00:02:26]} {[%emt 00:01:11]} Kh8 {[%clk 00:03:42]} {[%emt
00:00:31]} 34. Rad1 {[%clk 00:02:31]} {[%emt 00:00:05]} f3 {[%clk 00:02:18]}
{[%emt 00:01:34]} 35. Rf1 {[%clk 00:01:53]} {[%emt 00:00:48]} Rg8 {[%clk
00:01:49]} {[%emt 00:00:39]} 36. Rxf3 {[%clk 00:01:40]} {[%emt 00:00:23]} Rxf3
{[%clk 00:01:36]} {[%emt 00:00:23]} 37. Qxf3 {[%clk 00:01:48]} {[%emt
00:00:02]} 1-0

[Event "NK Rapid Vrouwen 2019"]
[Site "Amstelveen, Netherlands"]
[Date "2019.12.01"]
[Round "3.2"]
[White "Roebers, Eline"]
[Black "Paulet, Iozefina"]
[Result "0-1"]
[TimeControl "15m+10s"]
[BlackTitle "WGM"]
[WhiteFideId "1058401"]
[BlackFideId "1213261"]
[WhiteElo "2102"]
[BlackElo "2294"]

1. e4 {[%clk 00:15:18]} {[%emt 00:00:02]} e6 {[%clk 00:15:19]} {[%emt
00:00:02]} 2. d4 {[%clk 00:15:23]} {[%emt 00:00:04]} d5 {[%clk 00:15:28]}
{[%emt 00:00:02]} 3. Nc3 {[%clk 00:15:32]} Nf6 {[%clk 00:15:36]} {[%emt
00:00:01]} 4. Bg5 {[%clk 00:15:35]} {[%emt 00:00:06]} Bb4 {[%clk 00:15:45]}
{[%emt 00:00:02]} 5. e5 {[%clk 00:15:44]} {[%emt 00:00:01]} h6 {[%clk
00:15:54]} {[%emt 00:00:01]} 6. Bd2 {[%clk 00:15:50]} {[%emt 00:00:03]} Bxc3
{[%clk 00:16:02]} {[%emt 00:00:02]} 7. bxc3 {[%clk 00:15:59]} Ne4 {[%clk
00:16:11]} {[%emt 00:00:01]} 8. Qg4 {[%clk 00:15:59]} {[%emt 00:00:09]} g6
{[%clk 00:16:20]} {[%emt 00:00:02]} 9. Bd3 {[%clk 00:16:08]} {[%emt 00:00:01]}
Nxd2 {[%clk 00:16:28]} {[%emt 00:00:02]} 10. Kxd2 {[%clk 00:16:17]} {[%emt
00:00:01]} c5 {[%clk 00:16:37]} 11. h4 {[%clk 00:15:03]} {[%emt 00:01:23]} c4
{[%clk 00:16:44]} {[%emt 00:00:04]} 12. Be2 {[%clk 00:14:53]} {[%emt 00:00:19]}
Nc6 {[%clk 00:16:48]} {[%emt 00:00:07]} 13. Nh3 {[%clk 00:14:04]} {[%emt
00:00:59]} Bd7 {[%clk 00:16:49]} {[%emt 00:00:09]} 14. h5 {[%clk 00:13:00]}
{[%emt 00:01:14]} g5 {[%clk 00:16:55]} {[%emt 00:00:04]} 15. f4 {[%clk
00:11:11]} {[%emt 00:01:58]} f5 {[%clk 00:15:47]} {[%emt 00:01:18]} 16. exf6
{[%clk 00:09:47]} {[%emt 00:01:34]} e5 {[%clk 00:15:55]} {[%emt 00:00:02]} 17.
Qf3 {[%clk 00:06:37]} {[%emt 00:03:20]} e4 {[%clk 00:09:46]} {[%emt 00:06:19]}
18. Qe3 {[%clk 00:03:11]} {[%emt 00:03:36]} g4 {[%clk 00:05:12]} {[%emt
00:04:45]} 19. Nf2 {[%clk 00:02:49]} {[%emt 00:00:31]} Rg8 {[%clk 00:05:18]}
{[%emt 00:00:03]} 20. f7+ {[%clk 00:02:38]} {[%emt 00:00:22]} Kxf7 {[%clk
00:05:23]} {[%emt 00:00:06]} 21. f5 {[%clk 00:01:43]} {[%emt 00:01:04]} Bxf5
{[%clk 00:03:47]} {[%emt 00:01:46]} 22. Qxh6 {[%clk 00:01:52]} {[%emt
00:00:01]} Qg5+ {[%clk 00:03:56]} {[%emt 00:00:02]} 23. Qxg5 {[%clk 00:02:01]}
{[%emt 00:00:01]} Rxg5 {[%clk 00:04:05]} 24. Raf1 {[%clk 00:01:21]} {[%emt
00:00:49]} Ke6 {[%clk 00:04:13]} {[%emt 00:00:02]} 25. g3 {[%clk 00:01:09]}
{[%emt 00:00:22]} Rh8 {[%clk 00:04:16]} {[%emt 00:00:07]} 26. Rh4 {[%clk
00:01:11]} {[%emt 00:00:08]} Rhxh5 {[%clk 00:03:56]} {[%emt 00:00:30]} 27. Rxh5
{[%clk 00:01:08]} {[%emt 00:00:13]} Rxh5 {[%clk 00:04:04]} {[%emt 00:00:01]} 28.
Nxg4 {[%clk 00:01:15]} {[%emt 00:00:04]} Rg5 {[%clk 00:01:42]} {[%emt
00:02:32]} 29. Ne3 {[%clk 00:01:24]} {[%emt 00:00:01]} Ne7 {[%clk 00:01:50]}
{[%emt 00:00:02]} 30. g4 {[%clk 00:01:23]} {[%emt 00:00:12]} Bh7 {[%clk
00:01:49]} {[%emt 00:00:07]} 31. Rh1 {[%clk 00:01:14]} {[%emt 00:00:22]} Rg7
{[%clk 00:01:56]} {[%emt 00:00:03]} 32. Rh6+ {[%clk 00:01:01]} {[%emt
00:00:23]} Bg6 {[%clk 00:01:49]} {[%emt 00:00:16]} 33. g5 {[%clk 00:00:42]}
{[%emt 00:00:29]} Rh7 {[%clk 00:00:28]} {[%emt 00:01:31]} 34. Bg4+ {[%clk
00:00:24]} {[%emt 00:00:29]} Kf7 {[%clk 00:00:31]} {[%emt 00:00:07]} 35. Rxh7+
{[%clk 00:00:27]} {[%emt 00:00:07]} Bxh7 {[%clk 00:00:40]} 36. Ke2 {[%clk
00:00:36]} {[%emt 00:00:01]} Bg8 {[%clk 00:00:19]} {[%emt 00:00:31]} 37. Bh5+
{[%clk 00:00:36]} {[%emt 00:00:09]} Kg7 {[%clk 00:00:22]} {[%emt 00:00:09]} 38.
Kf2 {[%clk 00:00:44]} {[%emt 00:00:01]} Be6 {[%clk 00:00:28]} {[%emt 00:00:04]}
39. Kg3 {[%clk 00:00:43]} {[%emt 00:00:11]} Bf7 {[%clk 00:00:12]} {[%emt
00:00:26]} 40. Bxf7 {[%clk 00:00:49]} {[%emt 00:00:04]} Kxf7 {[%clk 00:00:21]}
41. Kf4 {[%clk 00:00:58]} Ke6 {[%clk 00:00:31]} {[%emt 00:00:01]} 42. Kg4
{[%clk 00:00:35]} {[%emt 00:00:32]} Ng6 {[%clk 00:00:34]} {[%emt 00:00:07]} 43.
Ng2 {[%clk 00:00:27]} {[%emt 00:00:18]} b5 {[%clk 00:00:21]} {[%emt 00:00:24]}
44. Kh5 {[%clk 00:00:34]} {[%emt 00:00:03]} Kf7 {[%clk 00:00:30]} 45. Ne3
{[%clk 00:00:26]} {[%emt 00:00:18]} Ne7 {[%clk 00:00:38]} {[%emt 00:00:03]} 46.
Kg4 {[%clk 00:00:18]} {[%emt 00:00:19]} Kg6 {[%clk 00:00:26]} {[%emt 00:00:21]}
47. Ng2 {[%clk 00:00:25]} {[%emt 00:00:01]} Kf7 {[%clk 00:00:28]} {[%emt
00:00:09]} 48. Ne3 {[%clk 00:00:34]} {[%emt 00:00:02]} a5 {[%clk 00:00:27]}
{[%emt 00:00:11]} 49. Kf4 {[%clk 00:00:25]} {[%emt 00:00:18]} Ke6 {[%clk
00:00:36]} {[%emt 00:00:02]} 50. Kg4 {[%clk 00:00:27]} {[%emt 00:00:09]} b4
{[%clk 00:00:40]} {[%emt 00:00:06]} 51. cxb4 {[%clk 00:00:32]} {[%emt
00:00:05]} axb4 {[%clk 00:00:49]} 52. Kh5 {[%clk 00:00:34]} {[%emt 00:00:08]}
Kf7 {[%clk 00:00:16]} {[%emt 00:00:43]} 53. Kg4 {[%clk 00:00:40]} {[%emt
00:00:04]} Ke6 {[%clk 00:00:13]} {[%emt 00:00:13]} 54. Ng2 {[%clk 00:00:47]}
{[%emt 00:00:02]} Ng6 {[%clk 00:00:19]} {[%emt 00:00:05]} 55. Kh5 {[%clk
00:00:52]} {[%emt 00:00:05]} Ne7 {[%clk 00:00:22]} {[%emt 00:00:08]} 56. Kg4
{[%clk 00:00:46]} {[%emt 00:00:15]} Nc6 {[%clk 00:00:26]} {[%emt 00:00:06]} 57.
Nf4+ {[%clk 00:00:47]} {[%emt 00:00:09]} Kd6 {[%clk 00:00:25]} {[%emt
00:00:11]} 58. g6 {[%clk 00:00:56]} {[%emt 00:00:01]} Ne7 {[%clk 00:00:21]}
{[%emt 00:00:15]} 59. Kg5 {[%clk 00:00:50]} {[%emt 00:00:15]} Ng8 {[%clk
00:00:23]} {[%emt 00:00:08]} 60. g7 {[%clk 00:00:42]} {[%emt 00:00:17]} e3
{[%clk 00:00:30]} {[%emt 00:00:03]} 61. Kg6 {[%clk 00:00:41]} {[%emt 00:00:11]}
Kc6 {[%clk 00:00:19]} {[%emt 00:00:21]} 62. Kf7 {[%clk 00:00:28]} {[%emt
00:00:22]} Nh6+ {[%clk 00:00:28]} 63. Kf8 {[%clk 00:00:31]} {[%emt 00:00:07]}
Kb5 {[%clk 00:00:36]} {[%emt 00:00:03]} 64. g8=Q {[%clk 00:00:38]} {[%emt
00:00:03]} Nxg8 {[%clk 00:00:45]} 65. Kxg8 {[%clk 00:00:47]} {[%emt 00:00:01]}
Ka4 {[%clk 00:00:52]} {[%emt 00:00:03]} 66. Kf7 {[%clk 00:00:51]} {[%emt
00:00:06]} Ka3 {[%clk 00:00:59]} {[%emt 00:00:03]} 67. Ke6 {[%clk 00:00:30]}
{[%emt 00:00:30]} Kxa2 {[%clk 00:01:08]} {[%emt 00:00:02]} 68. Nxd5 {[%clk
00:00:16]} {[%emt 00:00:24]} e2 {[%clk 00:01:01]} {[%emt 00:00:16]} 69. Nxb4+
{[%clk 00:00:18]} {[%emt 00:00:08]} Kb2 {[%clk 00:01:06]} {[%emt 00:00:05]} 70.
Kd5 {[%clk 00:00:23]} {[%emt 00:00:05]} e1=Q {[%clk 00:01:08]} {[%emt
00:00:07]} 71. Kxc4 {[%clk 00:00:29]} {[%emt 00:00:04]} Qc3+ {[%clk 00:01:13]}
{[%emt 00:00:05]} 0-1

[Event "NK Rapid Vrouwen 2019"]
[Site "Amstelveen, Netherlands"]
[Date "2019.12.01"]
[Round "3.3"]
[White "Haast, Anne"]
[Black "Keetman, Maaike"]
[Result "1-0"]
[TimeControl "15m+10s"]
[WhiteTitle "WGM"]
[WhiteFideId "1017292"]
[BlackFideId "1033697"]
[WhiteElo "2288"]
[BlackElo "2181"]

1. e4 {[%clk 00:15:19]} {[%emt 00:00:01]} e6 {[%clk 00:15:19]} {[%emt
00:00:02]} 2. d4 {[%clk 00:15:21]} {[%emt 00:00:07]} d5 {[%clk 00:15:27]}
{[%emt 00:00:02]} 3. Nc3 {[%clk 00:15:30]} {[%emt 00:00:01]} Nf6 {[%clk
00:15:35]} {[%emt 00:00:02]} 4. Bg5 {[%clk 00:15:33]} {[%emt 00:00:08]} dxe4
{[%clk 00:15:42]} {[%emt 00:00:02]} 5. Nxe4 {[%clk 00:15:29]} {[%emt 00:00:14]}
Be7 {[%clk 00:15:50]} {[%emt 00:00:02]} 6. Nxf6+ {[%clk 00:15:30]} {[%emt
00:00:10]} Bxf6 {[%clk 00:15:52]} {[%emt 00:00:08]} 7. Bxf6 {[%clk 00:15:38]}
{[%emt 00:00:02]} Qxf6 {[%clk 00:16:00]} {[%emt 00:00:03]} 8. Nf3 {[%clk
00:15:28]} {[%emt 00:00:20]} O-O {[%clk 00:15:40]} {[%emt 00:00:30]} 9. Qd2
{[%clk 00:14:48]} {[%emt 00:00:50]} c5 {[%clk 00:14:24]} {[%emt 00:01:26]} 10.
O-O-O {[%clk 00:14:33]} {[%emt 00:00:25]} Rd8 {[%clk 00:13:52]} {[%emt
00:00:41]} 11. Bd3 {[%clk 00:12:27]} {[%emt 00:02:17]} cxd4 {[%clk 00:12:36]}
{[%emt 00:01:27]} 12. Ng5 {[%clk 00:12:35]} {[%emt 00:00:01]} h6 {[%clk
00:12:30]} {[%emt 00:00:16]} 13. Ne4 {[%clk 00:12:44]} {[%emt 00:00:01]} Qe7
{[%clk 00:12:17]} {[%emt 00:00:23]} 14. g4 {[%clk 00:12:51]} {[%emt 00:00:02]}
e5 {[%clk 00:09:46]} {[%emt 00:02:41]} 15. Rdg1 {[%clk 00:12:50]} {[%emt
00:00:11]} Kh8 {[%clk 00:07:45]} {[%emt 00:02:12]} 16. g5 {[%clk 00:12:40]}
{[%emt 00:00:20]} h5 {[%clk 00:07:46]} {[%emt 00:00:08]} 17. g6 {[%clk
00:12:25]} {[%emt 00:00:25]} f6 {[%clk 00:02:41]} {[%emt 00:05:16]} 18. Qd1
{[%clk 00:11:27]} {[%emt 00:01:07]} Bg4 {[%clk 00:02:27]} {[%emt 00:00:25]} 19.
Rxg4 {[%clk 00:11:30]} {[%emt 00:00:07]} hxg4 {[%clk 00:02:36]} {[%emt
00:00:01]} 20. Qxg4 {[%clk 00:11:36]} {[%emt 00:00:04]} Kg8 {[%clk 00:02:13]}
{[%emt 00:00:32]} 21. Qh3 {[%clk 00:11:30]} {[%emt 00:00:17]} Qe8 {[%clk
00:00:47]} {[%emt 00:01:36]} 22. Bc4+ {[%clk 00:11:05]} {[%emt 00:00:35]} Kf8
{[%clk 00:00:56]} {[%emt 00:00:01]} 23. Qh8+ {[%clk 00:11:13]} {[%emt
00:00:01]} Ke7 {[%clk 00:01:04]} {[%emt 00:00:02]} 24. Qxg7+ {[%clk 00:11:21]}
{[%emt 00:00:02]} 1-0

[Event "NK Rapid Vrouwen 2019"]
[Site "Amstelveen, Netherlands"]
[Date "2019.12.01"]
[Round "3.4"]
[White "Jong-Muhren, Bianca de"]
[Black "Lanchava, Tea"]
[Result "1-0"]
[TimeControl "15m+10s"]
[WhiteTitle "WGM"]
[BlackTitle "IM"]
[WhiteFideId "1008498"]
[BlackFideId "1005308"]
[WhiteElo "2249"]
[BlackElo "2247"]

1. e4 {[%clk 00:15:19]} g6 {[%clk 00:15:17]} {[%emt 00:00:04]} 2. d4 {[%clk
00:15:27]} {[%emt 00:00:02]} Bg7 {[%clk 00:15:25]} {[%emt 00:00:02]} 3. Nc3
{[%clk 00:15:35]} {[%emt 00:00:02]} d6 {[%clk 00:15:32]} {[%emt 00:00:03]} 4.
f4 {[%clk 00:15:30]} {[%emt 00:00:15]} e6 {[%clk 00:15:32]} {[%emt 00:00:10]} 5.
Nf3 {[%clk 00:15:36]} {[%emt 00:00:04]} Ne7 {[%clk 00:15:39]} {[%emt 00:00:02]}
6. Be3 {[%clk 00:15:19]} {[%emt 00:00:27]} b6 {[%clk 00:15:42]} {[%emt
00:00:07]} 7. Bd3 {[%clk 00:15:27]} {[%emt 00:00:02]} Bb7 {[%clk 00:15:42]}
{[%emt 00:00:10]} 8. O-O {[%clk 00:15:18]} {[%emt 00:00:19]} O-O {[%clk
00:14:11]} {[%emt 00:01:40]} 9. f5 {[%clk 00:15:13]} {[%emt 00:00:15]} exf5
{[%clk 00:13:07]} {[%emt 00:01:14]} 10. exf5 {[%clk 00:15:10]} {[%emt
00:00:14]} Nd7 {[%clk 00:12:09]} {[%emt 00:01:09]} 11. Qd2 {[%clk 00:13:31]}
{[%emt 00:01:49]} c5 {[%clk 00:09:07]} {[%emt 00:03:11]} 12. fxg6 {[%clk
00:10:47]} {[%emt 00:02:54]} hxg6 {[%clk 00:09:07]} {[%emt 00:00:10]} 13. Nb5
{[%clk 00:08:58]} {[%emt 00:02:00]} Nf6 {[%clk 00:07:44]} {[%emt 00:01:32]} 14.
Bf4 {[%clk 00:08:16]} {[%emt 00:00:51]} Ne8 {[%clk 00:07:52]} {[%emt 00:00:02]}
15. c3 {[%clk 00:06:07]} {[%emt 00:02:19]} a6 {[%clk 00:07:39]} {[%emt
00:00:24]} 16. Na3 {[%clk 00:06:15]} {[%emt 00:00:02]} b5 {[%clk 00:07:07]}
{[%emt 00:00:42]} 17. Rad1 {[%clk 00:05:30]} {[%emt 00:00:54]} c4 {[%clk
00:06:58]} {[%emt 00:00:19]} 18. Bb1 {[%clk 00:05:23]} {[%emt 00:00:17]} Qd7
{[%clk 00:06:04]} {[%emt 00:01:04]} 19. Rde1 {[%clk 00:04:58]} {[%emt
00:00:35]} Nf6 {[%clk 00:04:45]} {[%emt 00:01:29]} 20. Bh6 {[%clk 00:04:38]}
{[%emt 00:00:30]} Ng4 {[%clk 00:04:03]} {[%emt 00:00:52]} 21. Bg5 {[%clk
00:04:04]} {[%emt 00:00:44]} f6 {[%clk 00:03:00]} {[%emt 00:01:14]} 22. Bf4
{[%clk 00:04:04]} {[%emt 00:00:10]} Nd5 {[%clk 00:02:55]} {[%emt 00:00:15]} 23.
Bxg6 {[%clk 00:04:04]} {[%emt 00:00:11]} f5 {[%clk 00:02:43]} {[%emt 00:00:22]}
24. Bg5 {[%clk 00:03:27]} {[%emt 00:00:46]} Ndf6 {[%clk 00:02:28]} {[%emt
00:00:25]} 25. h3 {[%clk 00:02:38]} {[%emt 00:01:00]} Ne4 {[%clk 00:02:08]}
{[%emt 00:00:29]} 26. Qf4 {[%clk 00:02:37]} {[%emt 00:00:11]} Nxg5 {[%clk
00:01:28]} {[%emt 00:00:50]} 27. Nxg5 {[%clk 00:02:34]} {[%emt 00:00:12]} Qc6
{[%clk 00:01:22]} {[%emt 00:00:17]} 28. Re2 {[%clk 00:02:23]} {[%emt 00:00:21]}
Nh6 {[%clk 00:00:56]} {[%emt 00:00:36]} 29. Nc2 {[%clk 00:01:36]} {[%emt
00:00:57]} Rf6 {[%clk 00:00:47]} {[%emt 00:00:18]} 30. Bh5 {[%clk 00:01:08]}
{[%emt 00:00:38]} Raf8 {[%clk 00:00:32]} {[%emt 00:00:25]} 31. Rfe1 {[%clk
00:00:57]} {[%emt 00:00:21]} Kh8 {[%clk 00:00:35]} {[%emt 00:00:07]} 32. Nb4
{[%clk 00:01:05]} {[%emt 00:00:02]} Qb6 {[%clk 00:00:35]} {[%emt 00:00:10]} 33.
Re7 {[%clk 00:00:42]} {[%emt 00:00:33]} a5 {[%clk 00:00:44]} {[%emt 00:00:01]}
34. Nc2 {[%clk 00:00:50]} {[%emt 00:00:02]} Qc6 {[%clk 00:00:53]} {[%emt
00:00:01]} 35. Bf3 {[%clk 00:00:58]} {[%emt 00:00:01]} d5 {[%clk 00:01:01]}
{[%emt 00:00:02]} 36. Rc7 {[%clk 00:00:42]} {[%emt 00:00:26]} Qb6 {[%clk
00:01:09]} {[%emt 00:00:03]} 37. Ree7 {[%clk 00:00:48]} {[%emt 00:00:04]} Rg6
{[%clk 00:01:10]} {[%emt 00:00:09]} 38. Rxb7 {[%clk 00:00:53]} {[%emt
00:00:05]} 1-0